bitfinex-derivatives/quotes_SOLF0:USTF0_20241203
["timestamp","ask_amount","ask_price","bid_price","bid_amount"]
[1733190921907,2.2,224.79,224.75,13.9380566]
[1733190922110,2.2,224.78,224.76,6.81320412]
[1733190922407,2.2,224.77,224.73,2.2244]
[1733190922603,10.43456259,224.85,224.74,13.92240405]
[1733190922809,10.43456259,224.85,224.68,0.02]
[1733190922810,10.43456259,224.76,224.6,20.1356813]
[1733190923108,10.43456259,224.73,224.62,10.43456259]
[1733190923308,10.43456259,224.73,224.53,2.2]
[1733190923309,2.2249,224.69,224.63,6.80805874]
[1733190923511,2.2,224.72,224.61,2.2257]
[1733190924006,10.43456259,224.7,224.62,5.68609181]
[1733190924200,10.43456259,224.7,224.52,4.31326812]
[1733190924401,10.43456259,224.7,224.55,10.43456259]
[1733190924605,10.43456259,224.7,224.56,13.88576703]
[1733190924800,10.43456259,224.7,224.57,13.88591222]
[1733190925002,10.43456259,224.7,224.58,6.79029606]
[1733190925216,12.65976259,224.67,224.59,6.79029606]
[1733190925410,2.2,224.66,224.55,10.43456259]
[1733190925610,2.2,224.66,224.56,8.56407569]
[1733190925807,2.2,224.66,224.57,6.78169889]
[1733190926012,2.2,224.66,224.55,10.43456259]
[1733190926404,2.2,224.66,224.56,1.11408315]
[1733190926603,2.2,224.66,224.55,10.43456259]
[1733190926805,2.2,224.66,224.56,6.77387787]
[1733190927107,2.2,224.66,224.57,5.76349658]
[1733190927308,2.2,224.66,224.57,2.2261]
[1733190927609,4.4253,224.66,224.55,12.66076259]
[1733190927807,4.4253,224.66,224.56,3.53297919]
[1733190928011,4.4253,224.66,224.57,3.53297919]
[1733190928309,2.2,224.66,224.54,2.2263]
[1733190928509,2.2,224.66,224.55,3.52917413]
[1733190928711,2.2,224.66,224.52,10.43456259]
[1733190928900,2.2,224.66,224.55,2.2263]
[1733190929107,10.43456259,224.64,224.56,3.52917979]
[1733190929406,10.43456259,224.64,224.5,10.43456259]
[1733190929601,2.2256,224.62,224.53,2.2265]
[1733190929807,2.2,224.61,224.53,2.2265]
[1733190930001,12.63456259,224.61,224.47,14.33436259]
[1733190930208,12.63456259,224.61,224.53,2.2265]
[1733190930403,12.63456259,224.61,224.47,14.33436259]
[1733190930610,10.43456259,224.61,224.48,3.52306563]
[1733190930804,10.43456259,224.61,224.49,3.52306563]
[1733190930805,2.2,224.6,224.49,3.52306563]
[1733190931001,2.2,224.6,224.5,3.52306563]
[1733190931205,2.2,224.6,224.47,14.33436259]
[1733190931400,2.2,224.6,224.48,3.52040453]
[1733190931606,2.2,224.6,224.49,3.52040453]
[1733190931812,4.4468,224.85,224.53,10.43456259]
[1733190932007,2.2,224.69,224.56,10.43456259]
[1733190932305,10.43456259,224.71,224.66,2.2252]
[1733190932506,2.2,224.69,224.66,2.2252]
[1733190932704,10.43456259,224.71,224.66,2.2252]
[1733190932901,2.2,224.7,224.67,2.2251]
[1733190933106,2.2,224.7,224.63,10.43456259]
[1733190933503,2.2,224.7,224.68,2.225]
[1733190934613,10.43456259,224.79,224.72,2.2246]
[1733190934809,10.43456259,224.79,224.66,10.43456259]
[1733190934810,2.2,224.78,224.66,10.43456259]
[1733190935009,10.43456259,224.82,224.66,10.43456259]
[1733190935010,2.2,224.77,224.66,10.43456259]
[1733190935306,2.2,224.76,224.64,2.6567]
[1733190935506,2.2,224.75,224.65,3.51958268]
[1733190935810,2.2,224.74,224.64,2.6567]
[1733190936006,2.2,224.73,224.64,2.6567]
[1733190936702,2.2,224.73,224.67,2.2251]
[1733190936903,2.2,224.73,224.64,2.6567]
[1733190937708,2.2,224.73,224.67,2.2251]
[1733190938813,2.2,224.73,224.64,2.6567]
[1733190938814,4.4246,224.73,224.64,2.6567]
[1733190939208,4.4246,224.73,224.59,0.57169]
[1733190939209,2.2,224.73,224.59,0.57169]
[1733190939517,2.2,224.73,224.6,10.29723632]
[1733190939710,2.2,224.73,224.61,9.1835589]
[1733190939912,2.2,224.73,224.59,0.57169]
[1733190940216,16.74440054,224.75,224.64,2.2254]
[1733190940217,2.2247,224.72,224.64,2.2254]
[1733190940513,2.2,224.71,224.6,19.41000054]
[1733190940710,16.74440054,224.79,224.68,2.225]
[1733190940711,2.2241,224.78,224.68,2.225]
[1733190940917,2.2,224.77,224.6,19.41000054]
[1733190941116,2.2,224.77,224.61,9.19350531]
[1733190941312,2.2,224.77,224.62,3.53602021]
[1733190941514,2.2,224.77,224.6,19.41000054]
[1733190941515,4.4241,224.77,224.67,2.2251]
[1733190941715,2.2,224.77,224.6,19.41000054]
[1733190942012,2.2,224.77,224.7,2.2248]
[1733190942419,16.74440054,224.79,224.64,16.74440054]
[1733190942615,2.2,224.78,224.74,2.2244]
[1733190942815,2.2,224.77,224.64,16.74440054]
[1733190943013,2.2,224.76,224.65,9.21947462]
[1733190943313,2.2,224.75,224.72,2.2245]
[1733190943512,2.2,224.74,224.61,4.28143843]
[1733190943712,2.2,224.74,224.6,21.61000054]
[1733190943713,2.2,224.73,224.68,2.225]
[1733190943915,2.2,224.72,224.6,19.41000054]
[1733190944117,2.2,224.71,224.61,19.2323141]
[1733190944313,2.2,224.7,224.62,16.33705526]
[1733190944513,2.2,224.7,224.63,10.34763064]
[1733190944719,2.2,224.7,224.64,9.23398775]
[1733190944914,2.2,224.7,224.65,3.55153375]
[1733190945212,2.2,224.7,224.69,2.2249]
[1733190946416,2.2,224.7,224.69,5.78908456]
[1733190946815,0.0744,224.7,224.69,5.78908456]
[1733190947322,2.2239,224.79,224.69,3.56937791]
[1733190947522,2.2,224.78,224.71,2.2247]
[1733190948019,4.424,224.78,224.71,2.2247]
[1733190948418,4.424,224.78,224.7,2.2248]
[1733190948718,4.424,224.78,224.71,3.57550153]
[1733190948918,4.424,224.78,224.7,2.2248]
[1733190949129,4.424,224.78,224.71,3.57551589]
[1733190949318,4.424,224.78,224.72,3.57551589]
[1733190949518,4.424,224.78,224.71,2.2247]
[1733190949719,4.424,224.78,224.72,3.58203072]
[1733190949917,4.424,224.78,224.71,2.2247]
[1733190950117,16.74440054,224.75,224.65,4.28143843]
[1733190950318,16.74440054,224.7,224.66,6.8549062]
[1733190950518,2.2,224.69,224.59,0.57169]
[1733190950824,2.2251,224.67,224.6,6.85649158]
[1733190951013,2.2,224.69,224.59,0.57169]
[1733190951213,2.2,224.69,224.6,1.11416496]
[1733190951421,2.2,224.68,224.61,1.11416496]
[1733190951718,2.2,224.68,224.59,0.57169]
[1733190951719,2.2,224.69,224.62,1.11416496]
[1733190951921,2.2,224.7,224.59,0.57169]
[1733190952317,2.2,224.7,224.6,1.11412331]
[1733190952518,2.2,224.7,224.59,0.57169]
[1733190952722,2.2,224.7,224.6,1.11414134]
[1733190952925,2.2,224.7,224.63,2.2254]
[1733190953117,2.2,224.7,224.64,1.11396554]
[1733190953320,2.2,224.7,224.65,1.11396554]
[1733190953623,2.225,224.68,224.61,2.2257]
[1733190953823,2.2,224.7,224.62,2.89620396]
[1733190954024,2.2,224.7,224.63,1.1139246]
[1733190954523,2.2,224.7,224.64,1.1139246]
[1733190954720,16.74440054,224.77,224.65,1.1139246]
[1733190954914,2.2,224.76,224.66,10.68851134]
[1733190955119,2.2,224.76,224.67,17.64453915]
[1733190955314,2.2,224.76,224.68,17.64453915]
[1733190955520,2.2,224.76,224.69,17.64453915]
[1733190955819,2.2,224.76,224.7,17.64324049]
[1733190956019,2.2,224.76,224.71,17.64324049]
[1733190956221,2.2,224.76,224.72,17.66253848]
[1733190956420,2.2244,224.74,224.67,6.61316872]
[1733190956629,2.2,224.76,224.68,17.67844414]
[1733190956925,2.2,224.76,224.69,17.67844414]
[1733190957226,16.74440054,224.73,224.7,17.67844414]
[1733190957520,2.2,224.76,224.71,15.89655342]
[1733190957720,10.47262237,224.71,224.68,0.02]
[1733190957923,2.2,224.7,224.66,4.36806872]
[1733190958129,10.47262237,224.67,224.66,2.24266872]
[1733190958424,2.45354703,224.67,224.59,0.59169]
[1733190958626,2.45354703,224.67,224.59,0.57169]
[1733190959323,2.2253,224.65,224.59,0.57169]
[1733190959523,2.2,224.64,224.59,0.57169]
[1733190960915,2.2,224.64,224.59,2.79759]
[1733190961322,2.2,224.64,224.59,0.57169]
[1733190962124,2.2,224.64,224.6,3.28381523]
[1733190962321,2.2,224.64,224.59,0.57169]
[1733190962623,2.2,224.64,224.6,3.28545586]
[1733190962928,14.89802237,224.64,224.59,0.57169]
[1733190964224,2.2255,224.63,224.54,1.2872]
[1733190964421,10.47262237,224.61,224.53,2.2265]
[1733190964619,10.47262237,224.58,224.44,10.47262237]
[1733190964820,2.2,224.57,224.45,5.48713203]
[1733190965025,2.2,224.57,224.51,2.2267]
[1733190965230,2.2,224.57,224.45,6.3186]
[1733190965421,2.2,224.57,224.46,3.28699828]
[1733190965629,2.2,224.57,224.51,2.2267]
[1733190965926,2.2,224.57,224.45,6.3186]
[1733190966121,2.2,224.57,224.46,3.28701255]
[1733190966319,2.2,224.57,224.47,3.28701255]
[1733190966525,2.2262,224.56,224.45,6.3786]
[1733190966722,2.2,224.57,224.5,2.2267]
[1733190967327,2.2,224.57,224.5,0.72779]
[1733190967924,4.4261,224.57,224.5,0.72779]
[1733190968329,4.4261,224.57,224.5,2.95459]
[1733190968531,10.47262237,224.55,224.5,0.72779]
[1733190970732,2.2,224.57,224.5,0.72779]
[1733190971134,2.2,224.57,224.5,11.20041237]
[1733190971328,2.26,224.61,224.57,2.226]
[1733190971724,2.26,224.61,224.5,11.20041237]
[1733190971928,2.26,224.61,224.58,2.226]
[1733190972128,2.26,224.61,224.5,11.20041237]
[1733190973731,10.47262237,224.62,224.5,11.20041237]
[1733190973931,2.26,224.61,224.5,11.20041237]
[1733190974137,2.26,224.61,224.5,0.72779]
[1733190974331,2.26,224.61,224.55,2.2263]
[1733190976336,10.47262237,224.59,224.5,0.72779]
[1733190976630,2.26,224.61,224.5,0.72779]
[1733190976631,10.47262237,224.56,224.5,0.72779]
[1733190976831,2.26,224.55,224.5,0.72779]
[1733190977036,2.26,224.55,224.51,2.2266]
[1733190977334,2.26,224.55,224.5,0.72779]
[1733190977536,2.26,224.55,224.52,2.2266]
[1733190977730,2.26,224.55,224.5,0.72779]
[1733190978531,2.26,224.55,224.54,2.2264]
[1733190984439,2.26,224.55,224.5,0.72779]
[1733190986042,2.26,224.55,224.52,2.2265]
[1733190986844,2.26,224.55,224.5,0.72779]
[1733190987136,4.4863,224.55,224.5,0.72779]
[1733190987339,10.47262237,224.53,224.5,0.72779]
[1733190988442,12.69912237,224.53,224.5,0.72779]
[1733190988645,10.47262237,224.53,224.5,0.72779]
[1733190989743,2.26,224.55,224.5,0.72779]
[1733190989944,10.47262237,224.53,224.5,0.72779]
[1733190992748,10.47262237,224.53,224.38,10.47262237]
[1733190993348,10.47262237,224.53,224.41,10.47262237]
[1733190993847,10.47262237,224.53,224.47,2.227]
[1733190994052,10.47262237,224.53,224.41,10.47262237]
[1733190994251,2.26,224.55,224.5,2.2268]
[1733190994555,2.26,224.55,224.41,10.47262237]
[1733190994748,10.47262237,224.53,224.41,10.47262237]
[1733190994947,2.2266,224.52,224.45,2.2272]
[1733190996752,12.69942237,224.5,224.4,0.93609]
[1733190996947,2.22,224.49,224.4,0.93609]
[1733190997152,4.447,224.49,224.42,2.2276]
[1733190997348,10.47262237,224.47,224.4,0.93609]
[1733191000153,12.69972237,224.47,224.4,3.16379]
[1733191001157,2.2272,224.46,224.4,0.93609]
[1733191001547,10.47262237,224.47,224.4,0.93609]
[1733191001752,2.2273,224.45,224.4,0.93609]
[1733191001956,2.22,224.44,224.4,0.93609]
[1733191002253,2.22,224.47,224.46,2.2272]
[1733191003352,2.22,224.47,224.4,0.93609]
[1733191003855,2.22,224.47,224.41,2.2276]
[1733191005055,4.4471,224.47,224.41,2.2276]
[1733191005249,2.22,224.47,224.4,3.16389]
[1733191005451,12.69262237,224.47,224.4,0.93609]
[1733191006154,2.2273,224.46,224.4,0.93609]
[1733191006856,2.2273,224.46,224.4,3.16389]
[1733191008153,2.22,224.47,224.41,2.2276]
[1733191009162,4.4471,224.47,224.41,2.2276]
[1733191010053,2.22,224.47,224.4,0.93609]
[1733191011256,2.22,224.47,224.43,2.2274]
[1733191011460,10.47262237,224.53,224.4,11.40871237]
[1733191011761,2.22,224.52,224.47,2.227]
[1733191011962,2.22,224.52,224.43,10.47262237]
[1733191012563,2.2264,224.54,224.48,2.227]
[1733191012859,2.2264,224.54,224.43,10.47262237]
[1733191012860,2.22,224.51,224.43,10.47262237]
[1733191013356,2.22,224.51,224.41,2.22]
[1733191013562,1.3788,224.55,224.52,2.2265]
[1733191013563,2.22,224.55,224.52,2.2265]
[1733191013863,2.22,224.55,224.46,10.47262237]
[1733191014960,2.22,224.55,224.52,2.2266]
[1733191015159,2.22,224.55,224.49,10.47262237]
[1733191015464,2.22,224.55,224.54,2.2264]
[1733191015659,3.9876,224.65,224.52,10.47262237]
[1733191015867,2.22,224.64,224.52,10.47262237]
[1733191016063,10.47262237,224.59,224.44,2.7084]
[1733191016256,2.22,224.58,224.45,10.47262237]
[1733191016667,4.446,224.58,224.49,2.2268]
[1733191017159,4.446,224.58,224.45,10.47262237]
[1733191017459,2.2261,224.57,224.45,10.47262237]
[1733191017863,2.2261,224.57,224.5,2.2268]
[1733191018763,2.22,224.58,224.5,2.2268]
[1733191019258,10.47262237,224.62,224.46,10.47262237]
[1733191019467,2.22,224.61,224.49,10.47262237]
[1733191019656,3.9876,224.65,224.52,10.47262237]
[1733191019863,2.22,224.64,224.52,10.47262237]
[1733191020261,2.22,224.64,224.57,2.2261]
[1733191020563,2.22,224.64,224.55,10.47262237]
[1733191020961,2.22,224.64,224.53,2.7573]
[1733191021858,4.4454,224.64,224.56,2.2262]
[1733191022365,4.4454,224.64,224.57,2.2261]
[1733191023369,2.22,224.64,224.59,2.2259]
[1733191024063,2.22,224.64,224.54,10.47262237]
[1733191024264,2.7138,224.71,224.6,10.47262237]
[1733191024660,2.22,224.7,224.6,10.47262237]
[1733191024860,2.22,224.7,224.66,2.2252]
[1733191026161,2.22,224.7,224.6,10.47262237]
[1733191026561,2.225,224.68,224.6,12.69832237]
[1733191026764,2.22,224.7,224.6,12.69832237]
[1733191026965,2.22,224.7,224.6,2.2257]
[1733191027468,4.4449,224.7,224.62,2.2256]
[1733191027664,2.22,224.7,224.6,10.47262237]
[1733191027968,2.22,224.7,224.64,2.2254]
[1733191028562,2.28,224.69,224.61,10.47262237]
[1733191028963,2.28,224.69,224.58,10.47262237]
[1733191029159,2.28,224.69,224.62,2.2256]
[1733191029369,2.28,224.69,224.58,10.47262237]
[1733191029871,2.28,224.69,224.61,10.47262237]
[1733191030268,2.28,224.69,224.64,2.2253]
[1733191030565,1.3159,224.71,224.61,10.47262237]
[1733191030771,2.28,224.73,224.64,10.47262237]
[1733191030970,2.28,224.72,224.67,2.2251]
[1733191034171,2.28,224.72,224.64,10.47262237]
[1733191034376,2.28,224.71,224.69,2.2248]
[1733191034969,2.28,224.73,224.67,10.47262237]
[1733191036078,2.28,224.73,224.69,2.2249]
[1733191037172,2.28,224.73,224.67,2.2251]
[1733191037373,2.28,224.73,224.64,10.47262237]
[1733191037673,2.28,224.73,224.67,2.225]
[1733191038273,2.28,224.73,224.64,10.47262237]
[1733191038472,2.28,224.73,224.61,10.47262237]
[1733191038976,12.75262237,224.73,224.61,10.47262237]
[1733191039184,12.75262237,224.73,224.58,10.47262237]
[1733191039475,1.3234,224.72,224.58,10.47262237]
[1733191040377,2.2251,224.68,224.61,2.2257]
[1733191040580,2.26,224.67,224.61,2.2257]
[1733191041178,4.4851,224.67,224.61,2.2257]
[1733191042381,2.26,224.67,224.61,2.2257]
[1733191044780,2.26,224.67,224.58,10.47262237]
[1733191045281,2.26,224.67,224.63,2.2255]
[1733191045984,2.26,224.67,224.62,2.2256]
[1733191047576,2.26,224.67,224.58,10.47262237]
[1733191048478,2.26,224.67,224.61,2.2256]
[1733191048683,2.26,224.67,224.58,10.47262237]
[1733191048882,2.26,224.67,224.62,2.2255]
[1733191049185,2.28,224.67,224.61,10.47262237]
[1733191050178,2.28,224.67,224.64,2.2254]
[1733191050487,2.28,224.67,224.61,10.47262237]
[1733191051087,2.28,224.67,224.64,2.2254]
[1733191053989,2.28,224.67,224.62,2.2255]
[1733191055582,2.28,224.67,224.61,2.2257]
[1733191055885,2.28,224.67,224.58,10.47262237]
[1733191056281,2.28,224.67,224.55,10.47262237]
[1733191056888,2.2253,224.65,224.58,2.226]
[1733191057284,2.2256,224.63,224.55,2.2262]
[1733191057487,2.2,224.62,224.54,1.3093]
[1733191058990,2.2,224.62,224.57,2.2261]
[1733191061797,2.2,224.62,224.57,8.93031222]
[1733191062189,9.46011222,224.66,224.59,6.70421222]
[1733191062391,2.2,224.65,224.6,2.2257]
[1733191062593,2.2,224.65,224.59,6.70421222]
[1733191062796,2.2,224.65,224.6,2.2258]
[1733191063692,2.2,224.65,224.59,6.70421222]
[1733191063892,2.2,224.65,224.61,6.70421222]
[1733191064590,2.2,224.65,224.63,6.70421222]
[1733191064792,6.70421222,224.71,224.63,6.70421222]
[1733191064986,2.2,224.7,224.63,6.70421222]
[1733191065386,2.2,224.7,224.66,2.2251]
[1733191065691,4.1479,224.8,224.67,10.46791269]
[1733191065887,2.2,224.71,224.67,10.46791269]
[1733191066896,2.2,224.71,224.68,2.225]
[1733191067093,2.2,224.71,224.67,10.46791269]
[1733191067992,2.2,224.71,224.69,2.2249]
[1733191069495,2.2,224.71,224.63,10.46791269]
[1733191069696,2.2,224.71,224.68,2.225]
[1733191072701,2.2,224.71,224.65,2.2253]
[1733191073000,2.2,224.71,224.63,10.46791269]
[1733191073895,2.2,224.71,224.68,2.2249]
[1733191074796,2.2,224.71,224.66,10.46791269]
[1733191074995,2.2,224.71,224.59,2.25081085]
[1733191075195,2.2,224.71,224.59,10.46791269]
[1733191075395,2.2,224.71,224.65,2.2253]
[1733191076404,2.2,224.71,224.59,10.46791269]
[1733191076601,2.2,224.71,224.67,2.2251]
[1733191077109,2.2244,224.74,224.67,2.2251]
[1733191077312,10.46791269,224.76,224.62,10.46791269]
[1733191077313,2.2,224.71,224.62,10.46791269]
[1733191077604,10.46791269,224.76,224.69,2.2248]
[1733191077605,2.2,224.72,224.69,2.2248]
[1733191080011,2.2,224.72,224.71,2.2247]
[1733191081110,76.14567197,224.83,224.75,2.2242]
[1733191081305,2.2,224.82,224.75,10.46791269]
[1733191081502,2.2,224.82,224.78,10.46791269]
[1733191081704,2.2,224.82,224.81,2.2237]
[1733191082307,2.2,224.86,224.81,10.46791269]
[1733191082511,3.966,224.92,224.81,10.46791269]
[1733191082512,2.2,224.87,224.81,10.46791269]
[1733191084308,4.4231,224.87,224.81,10.46791269]
[1733191085307,2.2235,224.84,224.78,10.46791269]
[1733191086106,2.2,224.87,224.78,10.46791269]
[1733191086814,2.2233,224.85,224.78,10.46791269]
[1733191089516,2.2233,224.85,224.78,12.69191269]
[1733191090311,2.2,224.87,224.81,10.46791269]
[1733191091005,2.2,224.87,224.78,10.46791269]
[1733191091713,2.2,224.87,224.81,6.69008425]
[1733191091912,4.4231,224.87,224.81,6.69008425]
[1733191092515,2.2234,224.85,224.8,6.69008425]
[1733191092809,2.2,224.87,224.82,6.69008425]
[1733191093407,2.2232,224.86,224.82,6.69008425]
[1733191095115,2.2232,224.86,224.81,6.69008425]
[1733191095819,2.2233,224.85,224.81,6.69008425]
[1733191096208,2.2235,224.83,224.81,6.69008425]
[1733191096413,2.2,224.82,224.78,2.2239]
[1733191096713,2.2,224.82,224.79,6.69008425]
[1733191097207,2.2,224.82,224.79,8.91398425]
[1733191098019,8.89008425,224.82,224.76,6.69008425]
[1733191098319,8.89008425,224.82,224.74,6.69008425]
[1733191098515,2.2239,224.8,224.74,8.91438425]
[1733191099109,2.2239,224.8,224.75,2.2243]
[1733191099316,8.89008425,224.82,224.74,6.69008425]
[1733191099317,2.224,224.79,224.74,6.69008425]
[1733191099519,8.89008425,224.82,224.74,6.69008425]
[1733191099816,2.2241,224.78,224.74,6.69008425]
[1733191100016,2.2,224.77,224.72,6.94937425]
[1733191100317,4.4242,224.76,224.72,6.94937425]
[1733191100818,2.2,224.76,224.72,6.94937425]
[1733191101009,4.4242,224.76,224.72,6.94937425]
[1733191101817,4.4242,224.76,224.74,6.69008425]
[1733191101818,2.2,224.76,224.74,6.69008425]
[1733191103315,2.2,224.76,224.75,2.2243]
[1733191103616,2.2,224.76,224.74,6.69008425]
[1733191103918,2.2,224.76,224.74,8.91448425]
[1733191106215,2.2,224.76,224.75,2.2243]
[1733191110333,2.2,224.8,224.74,6.69008425]
[1733191110533,2.2,224.81,224.8,6.69008425]
[1733191112328,2.2,224.81,224.78,8.91408425]
[1733191112534,2.2,224.81,224.8,6.69008425]
[1733191112726,2.2235,224.84,224.8,6.69008425]
[1733191112932,2.2,224.83,224.81,2.2237]
[1733191113126,2.2,224.82,224.81,2.2237]
[1733191113732,2.2,224.82,224.8,6.69008425]
[1733191113934,2.2,224.82,224.8,8.91388425]
[1733191115634,2.2,224.82,224.8,6.69008425]
[1733191116136,2.2,224.82,224.79,2.2239]
[1733191117337,4.4236,224.82,224.76,8.91428425]
[1733191117637,6.69008425,224.79,224.66,2.7064]
[1733191117833,2.2241,224.77,224.71,6.69008425]
[1733191118032,2.2,224.76,224.71,6.69008425]
[1733191118632,2.2,224.76,224.73,6.69008425]
[1733191119945,2.2,224.76,224.7,0.32163]
[1733191120240,8.89008425,224.76,224.7,0.32163]
[1733191120640,6.69008425,224.72,224.7,0.32163]
[1733191120839,2.2,224.71,224.7,0.32163]
[1733191123241,2.2,224.71,224.7,7.01171425]
[1733191123642,2.2,224.71,224.7,9.23651425]
[1733191124244,6.69008425,224.71,224.41,8.82139863]
[1733191124439,4.44199216,224.71,224.56,6.69008425]
[1733191124645,6.69008425,224.65,224.5,3.9955]
[1733191124845,2.2,224.64,224.57,6.69008425]
[1733191125041,2.2,224.64,224.5,3.9955]
[1733191125241,6.69008425,224.63,224.5,3.9955]
[1733191125539,2.2,224.64,224.5,14.47346433]
[1733191126047,2.2,224.64,224.53,10.47796433]
[1733191126440,2.2,224.64,224.54,2.2263]
[1733191127742,10.47796433,224.66,224.54,2.2263]
[1733191128049,4.4254,224.65,224.55,2.2262]
[1733191128248,2.2,224.64,224.56,10.47796433]
[1733191128944,2.2,224.64,224.57,2.2261]
[1733191131846,2.2,224.64,224.53,10.47796433]
[1733191132046,10.47796433,224.63,224.5,14.47346433]
[1733191132952,2.2259,224.59,224.51,2.2266]
[1733191133150,2.2,224.58,224.51,2.2266]
[1733191133445,2.2,224.58,224.5,14.47346433]
[1733191134653,2.2,224.58,224.25,6.56310369]
[1733191134654,10.47796433,224.57,224.37,4.1898]
[1733191134849,10.47796433,224.54,224.39,10.47796433]
[1733191135056,2.38,224.53,224.39,10.47796433]
[1733191135449,2.2269,224.49,224.39,10.47796433]
[1733191135655,2.38,224.48,224.39,10.47796433]
[1733191135856,2.38,224.47,224.39,10.47796433]
[1733191136146,2.38,224.46,224.42,2.2275]
[1733191136548,10.47796433,224.54,224.42,2.2275]
[1733191136753,2.2268,224.51,224.42,2.2275]
[1733191137050,2.38,224.53,224.42,2.2275]
[1733191137250,2.2265,224.53,224.42,10.47796433]
[1733191137548,2.38,224.52,224.42,10.47796433]
[1733191137749,2.38,224.52,224.29,10.47796433]
[1733191137750,2.2274,224.44,224.31,2.2287]
[1733191137951,2.38,224.43,224.34,10.47796433]
[1733191138253,2.2274,224.44,224.35,2.6343]
[1733191138450,2.38,224.43,224.35,2.6343]
[1733191139654,2.38,224.42,224.35,2.6343]
[1733191140054,2.38,224.42,224.35,4.8626]
[1733191140548,2.38,224.42,224.35,2.6343]
[1733191141854,4.6076,224.42,224.33,2.94662]
[1733191143552,4.6076,224.42,224.35,10.47796433]
[1733191143756,3.60745245,224.52,224.04,13.22442848]
[1733191143757,1.0,224.37,224.04,13.22442848]
[1733191143959,13.07796433,224.36,224.18,10.47796433]
[1733191144255,13.07796433,224.36,224.21,10.47796433]
[1733191144256,2.6,224.35,224.21,10.47796433]
[1733191144460,2.2288,224.3,224.21,10.47796433]
[1733191144658,2.6,224.29,224.21,10.47796433]
[1733191145061,2.6,224.29,224.21,12.70756433]
[1733191145263,2.6,224.29,224.21,10.47796433]
[1733191145559,2.6,224.31,224.24,12.70726433]
[1733191145760,2.6,224.33,224.24,10.47796433]
[1733191148360,4.8285,224.33,224.24,10.47796433]
[1733191148657,2.6,224.33,224.21,10.47796433]
[1733191149766,2.2288,224.3,224.21,12.70756433]
[1733191150064,2.6,224.33,224.21,12.70756433]
[1733191151566,2.2286,224.32,224.21,12.70756433]
[1733191151768,2.6,224.33,224.24,12.70726433]
[1733191152263,2.6,224.33,224.26,2.2291]
[1733191152464,31.39061087,224.48,224.27,10.47796433]
[1733191152666,10.47796433,224.44,224.3,10.47796433]
[1733191153166,10.47796433,224.38,224.19,3.9675]
[1733191153363,2.6,224.37,224.23,10.47796433]
[1733191154063,2.2283,224.35,224.26,2.2291]
[1733191154868,2.2284,224.34,224.26,2.2291]
[1733191155071,2.6,224.37,224.23,10.47796433]
[1733191155768,2.2288,224.3,224.23,12.70736433]
[1733191155967,2.2288,224.3,224.23,10.47796433]
[1733191155968,4.8288,224.3,224.23,10.47796433]
[1733191158064,2.6,224.3,224.23,10.47796433]
[1733191158266,2.2289,224.29,224.23,10.47796433]
[1733191159170,2.6,224.3,224.2,10.47796433]
[1733191161074,2.2288,224.31,224.23,10.47796433]
[1733191161374,2.6,224.3,224.23,10.47796433]
[1733191161570,4.8288,224.3,224.23,10.47796433]
[1733191162370,2.2288,224.3,224.23,10.47796433]
[1733191162571,2.6,224.29,224.26,2.2291]
[1733191162771,2.6,224.3,224.23,10.47796433]
[1733191162970,10.47796433,224.4,224.26,10.47796433]
[1733191163171,2.228,224.38,224.29,10.47796433]
[1733191163371,2.6,224.37,224.29,10.47796433]